Cogmind - Beta 13 X2 @@@ ROGUE MODE // 2023.12.23 @ 14:25:01 Player: Terminus Result: Destroyed by Y-54 Guardian with Gatling Laser Performance ------------- Evolutions (0) 0 Regions Visited (4) 800 Robots Destroyed (56) 280 Value Destroyed (1224) 1224 Prototype IDs (3) 60 Alien Tech Used (0) 0 Bonus (-128) -128 TOTAL SCORE: 2236 Bonus ------- Follower Combat Kills 7 Friendly Fire -135 Cogmind --------- Core Integrity 0/250 Matter 260/300 Energy 75/100 System Corruption 0% Temperature Cool (6) Movement Core (1550) Ox30 Location -7/Recycling Parts ------- > --- POWER (1) -------- (None) > --- PROPULSION (2) --- Wheel > --- UTILITY (2) ------ Huge Storage Unit Medium Armor Plating > --- WEAPON (2) ------- Battle Cannon Battle Cannon > --- INVENTORY (25) --- Light Treads Light Treads Spiked Treads Compact Wheel Compact Wheel Scrap Engine Improved Heat Sink High-capacity Storage Unit Medium Armor Plating Medium Armor Plating Hacking Suite Spread Laser Spread Laser Spread Laser Spread Laser Subdweller Laser Subdweller Laser Beamcaster Ion Cannon Battle Rifle Subdweller Machine Gun Light Cannon Subdweller Shrapnel Launcher Makeshift Hammer Peak State ------------ > --- POWER ------------ Ion Engine > --- PROPULSION ------- Light Treads Wheel > --- UTILITY ---------- Improved Heat Sink Huge Storage Unit > --- WEAPON ----------- Battle Cannon Subdweller Shrapnel Launcher > --- INVENTORY -------- Light Treads Light Treads Spiked Treads Compact Wheel Compact Wheel Scrap Engine High-capacity Storage Unit Medium Armor Plating Medium Armor Plating Medium Armor Plating Hacking Suite EM Pulse Gun Spread Laser Spread Laser Spread Laser Spread Laser Subdweller Laser Subdweller Laser Beamcaster Battle Rifle Subdweller Machine Gun Light Cannon Battle Cannon Makeshift Hammer [Rating: 17] Favorites ----------- Power Ion Engine Engine Ion Engine Propulsion Light Treads Treads Light Treads Wheel Compact Wheel Utility Scrap Shield Device Heat Sink Storage Huge Storage Unit Protection Scrap Shield Weapon Battle Cannon Energy Gun Subdweller Laser Energy Cannon Subdweller Beam Cannon Ballistic Gun Assault Rifle Ballistic Cannon Battle Cannon Launcher Subdweller Shrapnel Launcher Build | -11 -10 -10 -10 -7 ------- Run | Yrd Mat Min Sub Rec Slots Evolved . | . . . . . Power . | . . . . . Propulsion . | . . . . . Utility . | . . . . . Weapon . | . . . . . Parts Attached 38 | 6 9 2 18 3 Power 2 | 1 . . 1 . Engine 2 | 1 . . 1 . Core . | . . . . . Reactor . | . . . . . Propulsion 5 | 2 1 . 2 . Treads 3 | 1 1 . 1 . Leg . | . . . . . Wheel 2 | 1 . . 1 . Hover . | . . . . . Flight . | . . . . . Utility 12 | 1 3 2 4 2 Device 2 | . 1 . . 1 Storage 5 | 1 1 2 1 . Processor . | . . . . . Hackware . | . . . . . Protection 5 | . 1 . 3 1 Artifact . | . . . . . Weapon 19 | 2 5 . 11 1 Energy Gun 4 | . 2 . 2 . Energy Cannon 3 | . 1 . 2 . Ballistic Gun 3 | 2 . . 1 . Ballistic Cannon 8 | . 2 . 5 1 Launcher 1 | . . . 1 . Special Weapon . | . . . . . Impact Weapon . | . . . . . Slashing Weapon . | . . . . . Piercing Weapon . | . . . . . Special Melee Weapon . | . . . . . Unidentified Prototypes . | . . . . . Parts Lost 4 | . . . 2 2 Power 1 | . . . . 1 Propulsion 1 | . . . . 1 Utility 2 | . . . 2 . Weapon . | . . . . . Highest Loss Streak 2 | . . . 1 2 To Critical Strikes . | . . . . . Average Slot Usage (%) 91 | . 99 100 86 98 Engine 13 | . 14 14 14 13 Treads 13 | . 14 14 14 13 Wheel 14 | . 14 14 14 14 Device 1 | . 7 . . 13 Storage 6 | . 14 14 2 14 Protection 11 | . 5 14 12 . Energy Gun 5 | . 5 . 7 . Energy Cannon 2 | . 7 . 2 . Ballistic Gun 1 | . 8 . . . Ballistic Cannon 16 | . 5 28 16 15 Launcher 1 | . . . 1 12 Naked Turns . | . . . . . Heaviest Build 99 | 14 38 98 99 97 Greatest Support 20 | 16 16 20 20 10 Greatest Overweight (x) 9 | 1 2 6 9 9 Average Overweight (x) 2 | . 1 4 2 9 Largest Inventory Capacity 25 | 8 15 25 25 25 Average Capacity 12 | 6 14 21 8 25 Most Carried 25 | 3 15 18 25 25 Average Carried 10 | 1 11 16 7 24 Final Capacity 25 | 8 15 25 25 25 Final Carried 25 | 3 15 18 25 25 Class Distribution -------------------- 78% | Mutant 21% | Subdweller-Mutant Dominant Class ---------------- Mutant | -10/Materials Mutant | -10/Mines Mutant | -10/Subcaves Mutant | -7/Recycling Resources | -11 -10 -10 -10 -7 ----------- Run | Yrd Mat Min Sub Rec Matter Collected 1514 | 209 273 219 770 43 Remotely . | . . . . . Salvage Created 1197 | . 615 140 442 . Parts 94 | . 41 22 31 . Haulers Intercepted 2 | . 2 . . . Recyclers Shooed . | . . . . . Parts Field Recycled . | . . . . . Retrieved Matter . | . . . . . Parts Self-Destructed 20 | . . . 20 . Prevented . | . . . . . Kills | -11 -10 -10 -10 -7 ------- Run | Yrd Mat Min Sub Rec Combat Hostiles Destroyed 43 | . 14 10 19 . Guns 9 | . 6 . 3 . Cannons 34 | . 8 10 16 . Classes Destroyed 12 | . 8 1 3 . Worker 1 | . 1 . . . Builder 1 | . . 1 . . Tunneler 2 | . 1 1 . . Hauler 2 | . 2 . . . Recycler 1 | . 1 . . . Operator 2 | . 2 . . . Turret 1 | . . . 1 . Watcher 2 | . 2 . . . Swarmer 23 | . 6 10 7 . Grunt 9 | . 8 . 1 . Sentry 1 | . . . 1 . Subdweller 11 | . . . 11 . Best Kill Streak 6 | . 6 3 5 . Combat Bots Only 5 | . 5 3 5 . Max Kills in Single Turn 2 | . 1 2 1 . Gunslinging . | . . . . . Exploded . | . . . . . Melee . | . . . . . Uniques/NPCs Destroyed . | . . . . . Combat | -11 -10 -10 -10 -7 -------- Run | Yrd Mat Min Sub Rec Hostile Shots Fired 248 | . 43 24 133 48 Missed 72 | . 10 8 38 16 Damage Taken 1899 | . 343 152 1173 231 Core 250 | . 63 18 117 52 Absorbed by Shields . | . . . . . Core Remaining (%) 100 | 100 . . . . Volleys Fired 186 | . 56 17 110 3 Largest 2 | . 2 2 2 2 Hottest 119 | . 100 70 119 78 Shots Fired 319 | . 110 34 169 6 Gun 77 | . 51 . 26 . Cannon 241 | . 59 34 142 6 Launcher 1 | . . . 1 . Special . | . . . . . Kinetic 231 | . 59 34 132 6 Thermal 88 | . 51 . 37 . Explosive . | . . . . . Electromagnetic . | . . . . . Robot Hit Streak 10 | . 9 5 10 8 Robot Miss Streak 5 | . 5 5 5 2 Penetration Max . | . . . . . Secondary Targets . | . . . . . Shots Hit Robots 150 | . 64 13 69 4 Core Hits 82 | . 45 11 26 . Critical Kills . | . . . . . Critical Parts Destroyed . | . . . . . Critical Strikes 4 | . . . 4 . Blast 4 | . . . 4 . Melee Attacks . | . . . . . Impact . | . . . . . Slashing . | . . . . . Piercing . | . . . . . Sneak Attacks . | . . . . . Combat Hostiles . | . . . . . Follow-up Attacks . | . . . . . Damage Inflicted 3039 | . 1012 352 1577 98 Guns 717 | . 486 . 231 . Cannons 2124 | . 526 269 1231 98 Explosions 198 | . . 83 115 . Melee . | . . . . . Ramming . | . . . . . Kinetic 2064 | . 468 269 1229 98 Thermal 975 | . 544 83 348 . Explosive . | . . . . . Electromagnetic . | . . . . . Impact . | . . . . . Slashing . | . . . . . Piercing . | . . . . . Highest Corruption . | . . . . . Average Corruption . | . . . . . Corruption Purged . | . . . . . Corruption Blocked . | . . . . . Overload Shots . | . . . . . Overflow Damage 56 | . . 27 29 . Projectiles 33 | . . 18 15 . Explosions 23 | . . 9 14 . Melee . | . . . . . Knockbacks 16 | . 4 2 10 . Impact . | . . . . . Kinetic 16 | . 4 2 10 . Secondary . | . . . . . Self-Inflicted Damage . | . . . . . Shots . | . . . . . Rammed . | . . . . . Targets Rammed . | . . . . . Kicked . | . . . . . Crushed . | . . . . . Highest Temperature 435 | . 435 108 13 11 Average Temperature 87 | . 130 33 6 6 Received Heat Transfer 546 | . 135 15 330 66 Effects 4 | . 4 . . . Shutdowns 1 | . 1 . . . Energy Bleed 1 | . 1 . . . Interference 2 | . 2 . . . Siege Activations . | . . . . . Robots Corrupted . | . . . . . Combat Hostiles . | . . . . . Parts Fried . | . . . . . Impact Corruptions . | . . . . . Robots Melted . | . . . . . Combat Hostiles . | . . . . . Parts Melted 1 | . 1 . . . Heat Transferred 1485 | . 927 100 458 . Parts Sabotaged . | . . . . . Parts Stolen . | . . . . . Parts Stripped . | . . . . . Power Chain Reactions . | . . . . . Missiles Intercepted . | . . . . . Alert | -11 -10 -10 -10 -7 ------- Run | Yrd Mat Min Sub Rec Peak Influence 1191 | . 257 279 . 1191 Initial 1150 | . . 49 . 1150 Average 233 | . 124 161 . 1163 Maximum Alert Level 4 | . 1 1 . 4 Low Security (%) 60 | 100 80 49 . . Level 1 30 | . 19 50 . . Level 2 . | . . . . . Level 3 . | . . . . . Level 4 9 | . . . . 100 Level 5 . | . . . . . High Security . | . . . . . Max Security . | . . . . . Squads Dispatched 3 | . 3 . . . Investigation 1 | . 1 . . . Extermination . | . . . . . Reinforcement 2 | . 2 . . . Assault . | . . . . . Garrison . | . . . . . Intercept . | . . . . . Searches Triggered . | . . . . . Construction Impeded . | . . . . . Haulers Reinforced . | . . . . . Active Scanning Responses . | . . . . . Cargo Convoy Interrupts . | . . . . . Stealth | -11 -10 -10 -10 -7 --------- Run | Yrd Mat Min Sub Rec Distress Signals 1 | . 1 . . . Communications Jammed . | . . . . . Distress Signals . | . . . . . Times Spotted 139 | . 22 10 105 2 Peak Tracking Total 6 | . 5 3 6 2 Tactical Retreats 14 | . . . 14 . Traps | -11 -10 -10 -10 -7 ------- Run | Yrd Mat Min Sub Rec Traps Triggered 2 | . . . 2 . Indirectly . | . . . . . Trap Hack Attempts . | . . . . . Triggered . | . . . . . Disarmed . | . . . . . Reprogrammed . | . . . . . Reused . | . . . . . Traps Extracted . | . . . . . Installed . | . . . . . Triggered 2 | . . . 2 . Machines | -11 -10 -10 -10 -7 ---------- Run | Yrd Mat Min Sub Rec Machines Disabled 13 | . 3 7 3 . Max in Single Turn 6 | . 1 6 2 . Machines Repaired . | . . . . . Machines Dismantled . | . . . . . Machines Sabotaged . | . . . . . Overloaded Fab Kills . | . . . . . Hacking | -11 -10 -10 -10 -7 --------- Run | Yrd Mat Min Sub Rec Machines Accessed 10 | . 7 . 1 2 Terminals 7 | . 6 . . 1 Fabricators . | . . . . . Repair Stations . | . . . . . Recycling Units 2 | . 1 . . 1 Scanalyzers . | . . . . . Garrison Access . | . . . . . Total Hacks 35 | . 21 . 6 8 Successful 21 | . 12 . 6 3 Failed 14 | . 9 . . 5 Catastrophic . | . . . . . Database Lockouts . | . . . . . Manual 23 | . 16 . . 7 Terminals 26 | . 20 . . 6 Fabricators . | . . . . . Repair Stations . | . . . . . Recycling Units 3 | . 1 . . 2 Scanalyzers . | . . . . . Garrison Access . | . . . . . Terminal Hacks 15 | . 8 . 6 1 Record 6 | . . . 6 . Robot Analysis 1 | . 1 . . . Prototype ID Bank 2 | . 2 . . . Terminal Index 1 | . 1 . . . Hauler Manifests 2 | . 2 . . . Zone Layout 3 | . 2 . . 1 Fabricator Hacks . | . . . . . Repair Station Hacks . | . . . . . Recycling Unit Hacks . | . . . . . Scanalyzer . | . . . . . Garrison Access Hacks . | . . . . . Unauthorized Hacks 6 | . 4 . . 2 Terminals 4 | . 3 . . 1 Botnet 4 | . 3 . . 1 Fabricators . | . . . . . Repair Stations . | . . . . . Recycling Units 2 | . 1 . . 1 Tunnel 2 | . 1 . . 1 Scanalyzers . | . . . . . Garrison Access . | . . . . . Data Cores Recovered . | . . . . . Used . | . . . . . Hacking Detections 7 | . 6 . . 1 Full Trace Events . | . . . . . Feedback Events . | . . . . . Feedback Blocked . | . . . . . Robot Schematics Acquired . | . . . . . Robots Built . | . . . . . Authchips . | . . . . . Time . | . . . . . Total Robot Build Rating . | . . . . . Part Schematics Acquired . | . . . . . Parts Built . | . . . . . Authchips . | . . . . . Time . | . . . . . Total Part Build Rating . | . . . . . Parts Repaired . | . . . . . Time . | . . . . . Parts Recycled . | . . . . . Recycled Matter . | . . . . . Retrieved Matter . | . . . . . Retrieved Components . | . . . . . Parts Scanalyzed . | . . . . . Part Schematics Acquired . | . . . . . Parts Damaged . | . . . . . Bothacking | -11 -10 -10 -10 -7 ------------ Run | Yrd Mat Min Sub Rec Used RIF Installer . | . . . . . Robots Hacked . | . . . . . Non-combat . | . . . . . Combat . | . . . . . Robot Hacks Applied . | . . . . . Relay Couplers Released . | . . . . . Fabnet Peak Effective % . | . . . . . Robots Rewired . | . . . . . Allies Hacked . | . . . . . Hacks Repelled . | . . . . . Allies | -11 -10 -10 -10 -7 -------- Run | Yrd Mat Min Sub Rec Total Allies 3 | . . 3 . . Largest Group 3 | . . 3 3 . Highest-Rated Group 40 | . . 40 40 . Highest-Rated Ally 16 | . . 16 16 . Total Orders . | . . . . . Ally Attacks 23 | . . 11 12 . Total Damage 265 | . . 88 177 . Kills 1 | . . 1 . . Allies Corrupted . | . . . . . Allies Melted . | . . . . . Intel | -11 -10 -10 -10 -7 ------- Run | Yrd Mat Min Sub Rec Robot Analysis Total 1 | . 1 . . . Derelict Logs Recovered 2 | . . 1 1 . Drone Launches . | . . . . . Drone Recoveries . | . . . . . Exploration | -11 -10 -10 -10 -7 ------------- Run | Yrd Mat Min Sub Rec Turns Passed 7089 | 48 1250 1107 4440 244 Spaces Moved 4577 | 40 667 619 3147 104 Core 14 | 14 . . . . Treads 3 | . . 1 2 . Legs . | . . . . . Wheels 4560 | 26 667 618 3145 104 Hover . | . . . . . Flight . | . . . . . Fastest Speed 50 | 50 100 130 95 215 Average Speed 130 | 92 120 160 124 215 Slowest Speed 240 | 100 130 240 240 215 Overloaded Moves . | . . . . . Propulsion Burnouts . | . . . . . Robots Hopped . | . . . . . Cave-ins Triggered . | . . . . . Exploration Rate (%) 62 | 3 98 97 88 24 Regions Visited 4 Branch Regions 3 Pre-discovered Areas 2 | . 1 . . 1 Known Exits Taken . | . . . . . Unknown Exits Taken 4 | 1 1 1 1 . Scrap Searched 18 | . . 1 17 . Spaces Dug 1 | . . . 1 . Terrain Destroyed 40 | . . 11 27 2 Melee . | . . . . . Projectile 13 | . . . 11 2 AOE 27 | . . 11 16 . Terrain Rammed . | . . . . . Walls Destroyed . | . . . . . Machines Disabled . | . . . . . Actions | -11 -10 -10 -10 -7 --------- Run | Yrd Mat Min Sub Rec Total 5365 | 48 1002 701 3496 118 Wait 458 | . 240 59 155 4 Move 4573 | 39 666 618 3146 104 Hop . | . . . . . Pick Up 64 | 3 20 3 36 2 Fast Attach 15 | 6 3 . 6 . Attach 2 | . . . 1 1 Detach . | . . . . . Swap 21 | . 6 2 11 2 Drop 35 | . 11 2 20 2 Fire 186 | . 56 17 110 3 Melee . | . . . . . Ram . | . . . . . Kick . | . . . . . Crush . | . . . . . Escape Stasis . | . . . . . Rewire . | . . . . . Trap . | . . . . . Miscellaneous 11 | . . . 11 . Route ------- -11/Scrapyard -10/Materials (discovered 4 exits: [*Mat x3] / [*Min]) -10/Mines (discovered 3 exits: [*Mat x2] / *Sub) -10/Subcaves (discovered 3 exits: [*Mat x2] / *Rec) -7/Recycling History --------- Turn | Location | Event 11 | -11/Scrapyard | Discovered new exit (range 15) 49 | -11/Scrapyard | Entered Materials 300 | -10/Materials | Build established: Mutant 346 | -10/Materials | Discovered new exit (range 9) 445 | -10/Materials | Discovered new exit (range 10) 914 | -10/Materials | Discovered new exit (range 7) 1075 | -10/Materials | Discovered new exit (range 15) 1299 | -10/Materials | Entered Mines 1559 | -10/Mines | Deemed a non-threat by the Exiles lab entrance 1617 | -10/Mines | Assisted by bots powering up and referring to "LRC-V3" 1683 | -10/Mines | Learned Materials stockpile data 1832 | -10/Mines | Discovered new exit (range 8) 1898 | -10/Mines | Discovered new exit (range 9) 2399 | -10/Mines | Discovered new exit (range 3) 2406 | -10/Mines | Entered Subcaves 2406 | -10/Subcaves | Accompanied by 3 allies 2428 | -10/Subcaves | A swath of the cavern ceiling suddenly collapsed 2653 | -10/Subcaves | Learned Materials trap positions 3110 | -10/Subcaves | A swath of the cavern ceiling suddenly collapsed 3297 | -10/Subcaves | Build established: Subdweller-Mutant 3594 | -10/Subcaves | Discovered new exit (range 10) 3673 | -10/Subcaves | Ambushed by Subdweller buried in earth 3699 | -10/Subcaves | Discovered new exit (range 10) 3709 | -10/Subcaves | Shifting Twisted Machinery released Mak. Light Armor Plating 3982 | -10/Subcaves | Shifting Twisted Machinery released Sub. Beam Cannon 3984 | -10/Subcaves | Shifting Twisted Machinery released Slug Cannon 4198 | -10/Subcaves | Shifting Twisted Machinery released Battle Cannon 4509 | -10/Subcaves | Core integrity fell below 50% 4835 | -10/Subcaves | Build established: Mutant 5580 | -10/Subcaves | Visited Clippyterm 5583 | -10/Subcaves | Learned Research security intel 5928 | -10/Subcaves | Ambushed by Subdweller buried in earth 5973 | -10/Subcaves | Discovered new exit (range 14) 6355 | -10/Subcaves | Disturbed a concealed Subdweller 6846 | -10/Subcaves | Entered Recycling 6849 | -7/Recycling | Found Scrap Engine 7084 | -7/Recycling | Core integrity fell below 20% 7090 | -7/Recycling | Destroyed by Y-54 Guardian with Gatling Laser Last Messages --------------- 06870_ R-06 Scavenger collects Lgt. Cannon. 06912_ Acquired 43 matter. 06919_ Dropped EM Pulse Gun. 06919_ Acquired Ion Cannon. 06980_ Connecting with Terminal... 06980_ Current location identified: Recycling >>Trojan(Botnet) Trojan loaded successfully. Testing... Terminal linked with 0 systems. Awaiting botnet instructions. >>Layout(Zone) Retrieving Zone 6W layout... Downloaded map data. 07021_ Connecting with Recycling Unit... >>Force(Tunnel) DISCOVERED[-5/Factory] 07080_ Y-54 Guardian springs to life. 07083_ Lgt. Treads destroyed. 07086_ Ion Engine destroyed. Map ----- +----------------------------------------------------+ | ???# ###########?????# #???????????? | | ???# #???????????????# ! #???????????? | | ??## ##????????####### ! #???????????? | | ??# ########## #[! #???????????? | | ??# # #???????????? | | ??# +%% #???????????? | | ??# # #???????????? | | ??# ########## # #???????????? | | ??#######"""#????## ##=! !#???????????? | | ????????#"Y"#?????# ## #???????????? | | ?????####" "####### ## ]!#???????????? | | ???### """ # ####+###???????????? | | ???#"" """"" # #??????????????????? | | ???#"T """"" # #??????????????????? | | ???#"" """"" # #??????????????????? | | ???### """ # #??????????????????? | | ?????# + #??????????????????? | | ?????# # #??????????????????? | | ?????# ### #??????????????????? | | ?????# #?# #??????????????????? | | ?????# #?# #??????????????????? | | ?????# #?# #??????????????????? | | ?????# #?# #??????????????????? | | ?????##############?# #??????????????????? | | ?????###########Y;### #### ##????????????? | | ???##; % @ Y #????????????? | | ???#== % #????????????? | | ???#== #????????????? | | ???#== u r #????????????? | | ???### r ??????????? | | ?????# """ ##### #r ??????????? | | ?????# """"" #???? #????????????? | | ?????# """"" #?????#????????????? | | ????? ?"""" #??????????????????? | | ????? ????"" #??????????????????? | | ?????? ?????? #??????????????????? | | ?????? ??????? #??????????????????? | | ???????????????" #??????????????????? | | ???????????????"" ##+#??????????????????? | | ????????????????" ??????????????????????? | | ????????????????? ??????????????????????? | | ?????????????????????????????????????????? | | ?????????????????????????????????????????? | | ?????????????????????????????????????????? | | ?????????????????????????????????????????? | | ?????????????????????????????????????????? | | ?????????????????????????????????????????? | | ?????????????????????????????????????????? | | ?????????????????????????????????????????? | | ?????????????????????????????????????????? | +----------------------------------------------------+ Best States ------------- Heat Dissipation 39 Energy Generation 10 Energy Capacity 250 Matter Stores 300 Matter Capacity 300 Sight Range 16 Terrain Scan Density 10 Armor Coverage 800 Evasion (%) 41 Recoil Reduction 1 Item Schematics ----------------- None Robot Schematics ------------------ None Fabricated ------------ Nothing Alien Tech Used ----------------- None Achievements -------------- None Challenges ------------ None Game ------ Seed AssembledPulseEdition Manual? 0 Play Time 00:32:38 Cumulative 1853.1 hours Start 2023.12.23 @ 13:52:12 End 2023.12.23 @ 14:25:01 Sessions 1 Manual Loads 0 Difficulty Rogue Special Mode None Game No. 651 Rogue 651 Adventurer 0 Explorer 0 Win Type - Total 144 Types 29/13/64/7/1/2/26/1/1 Lore% 96 Gallery% 96 Achievement% 88 Wizard Run 0 Options --------- ASCII 0 Keyboard 0 Movement Numpad Keybinds 0 Fullscreen 2 Font 18/SmallcapsGlow Map View 76x50 Zoom Use 0% Tactical HUD 1 Map Filters NONE Filters NONE Steam 1 RUN: ed6b09d8-2339-48d5-9f92-ebabbe5513f3